bitfinex/quotes_BTCUSD_20250403
["timestamp","ask_amount","ask_price","bid_price","bid_amount"]
[1743691377627,0.8267972,81830.0,81829.0,0.0003764]
[1743691378989,0.5701682,81830.0,81829.0,0.0003764]
[1743691379168,0.4867972,81830.0,81829.0,0.0003764]
[1743691380423,0.6035528,81830.0,81829.0,0.0003764]
[1743691380836,0.4867972,81830.0,81829.0,0.0003764]
[1743691381149,0.6035528,81830.0,81829.0,0.0003764]
[1743691381634,0.9435528,81830.0,81829.0,0.0003764]
[1743691382233,0.9926528,81830.0,81829.0,0.0003764]
[1743691382435,0.9926528,81830.0,81829.0,4e-07]
[1743691386343,0.8267972,81830.0,81829.0,4e-07]
[1743691386533,0.9435528,81830.0,81829.0,4e-07]
[1743691389263,0.9485528,81830.0,81829.0,4e-07]
[1743691389484,1.05819365,81830.0,81829.0,4e-07]
[1743691390092,1.08319365,81830.0,81829.0,4e-07]
[1743691390773,1.08319365,81830.0,81811.0,0.004]
[1743691390774,0.596685,81812.0,81811.0,0.004]
[1743691390986,0.8758806,81812.0,81811.0,0.004]
[1743691391198,1.1458806,81812.0,81811.0,0.004]
[1743691391407,1.15828418,81812.0,81811.0,0.004]
[1743691393491,0.596688,81811.0,81810.0,1e-07]
[1743691393704,0.9734436,81811.0,81810.0,1e-07]
[1743691394682,0.9754436,81811.0,81810.0,1e-07]
[1743691395123,0.9734436,81811.0,81810.0,1e-07]
[1743691395562,0.9764436,81811.0,81810.0,1e-07]
[1743691395993,0.9734436,81811.0,81810.0,1e-07]
[1743691396220,0.99298445,81811.0,81810.0,1e-07]
[1743691396449,0.99598445,81811.0,81810.0,1e-07]
[1743691396978,1.10972846,81811.0,81810.0,1e-07]
[1743691397168,0.596726,81799.0,81798.0,6.1e-07]
[1743691397373,2.0496016,81799.0,81798.0,6.1e-07]
[1743691399838,0.012225,81797.0,81796.0,7.1e-07]
[1743691400006,0.9834876,81797.0,81796.0,7.1e-07]
[1743691400225,0.59499627,81788.0,81787.0,0.11190919]
[1743691400441,1.13415187,81788.0,81787.0,0.11190919]
[1743691405190,1.13615187,81788.0,81787.0,0.11190919]
[1743691405631,1.13515187,81788.0,81787.0,0.11190919]
[1743691406071,1.14531588,81788.0,81787.0,0.11190919]
[1743691406999,0.98291588,81788.0,81787.0,0.11190919]
[1743691407258,1.14527588,81788.0,81787.0,0.11190919]
[1743691407943,0.61116401,81788.0,81787.0,0.11190919]
[1743691408164,0.98467961,81788.0,81787.0,0.11190919]
[1743691409106,0.98367961,81788.0,81787.0,0.11190919]
[1743691409617,1.66560401,81788.0,81787.0,0.11190919]
[1743691409897,1.32560401,81788.0,81787.0,0.11190919]
[1743691410156,2.0299556,81788.0,81787.0,0.11190919]
[1743691410648,2.13344438,81788.0,81787.0,0.11207749]
[1743691412278,2.13444438,81788.0,81787.0,0.11207749]
[1743691412971,2.04024438,81788.0,81787.0,0.11207749]
[1743691413439,2.04124438,81788.0,81787.0,0.11207749]
[1743691415046,2.04124438,81788.0,81787.0,0.11211749]
[1743691415273,2.15798839,81788.0,81787.0,0.11211749]
[1743691415507,2.04124438,81788.0,81787.0,0.11211749]
[1743691416508,2.04624438,81788.0,81787.0,0.11211749]
[1743691416759,2.04624438,81788.0,81775.0,0.08105228]
[1743691416760,0.626763,81787.0,81786.0,4.9e-07]
[1743691416996,1.01805945,81787.0,81786.0,4.9e-07]
[1743691417486,0.352228,81779.0,81775.0,0.08105228]
[1743691417755,0.9735446,81779.0,81775.0,0.08105228]
[1743691419499,0.9735446,81779.0,81778.0,0.08028339]
[1743691420201,0.9735446,81779.0,81778.0,0.08032339]
[1743691420202,0.9745446,81779.0,81778.0,0.08032339]
[1743691420753,0.601,81779.0,81778.0,0.08032339]
[1743691421014,0.601,81779.0,81778.0,0.08036339]
[1743691421517,0.261,81779.0,81778.0,0.08036339]
[1743691421766,0.261,81779.0,81778.0,0.33715539]
[1743691421980,0.261,81779.0,81778.0,0.08036339]
[1743691422195,0.261,81779.0,81778.0,0.08053169]
[1743691422912,0.26,81779.0,81778.0,0.08053169]
[1743691424573,0.26,81779.0,81778.0,0.32509569]
[1743691424804,0.26,81779.0,81778.0,0.33732369]
[1743691425299,0.26,81779.0,81778.0,0.50107929]
[1743691425769,0.0003366,81788.0,81787.0,0.256763]
[1743691425997,0.0403366,81788.0,81787.0,0.5357586]
[1743691426479,0.0403366,81788.0,81787.0,0.16224]
[1743691426938,0.0403366,81788.0,81781.0,0.012227]
[1743691427175,0.0403366,81788.0,81778.0,0.14005969]
[1743691427415,0.0403366,81788.0,81778.0,0.12783169]
[1743691427656,0.244537,81787.0,81778.0,0.08053169]
[1743691427887,0.262226,81787.0,81778.0,0.08053169]
[1743691428115,0.012227,81786.0,81778.0,0.08053169]
[1743691428343,0.012227,81785.0,81778.0,0.08053169]
[1743691428529,0.524543,81785.0,81778.0,0.08053169]
[1743691428743,0.28,81785.0,81778.0,0.08053169]
[1743691428956,0.292227,81785.0,81778.0,0.08053169]
[1743691429173,0.28,81785.0,81778.0,0.08053169]
[1743691429801,0.28,81785.0,81778.0,0.08057169]
[1743691430095,0.28,81785.0,81780.0,0.012227]
[1743691430378,0.28,81785.0,81779.0,0.244561]
[1743691430589,0.28,81785.0,81778.0,0.32513469]
[1743691430810,0.28,81785.0,81779.0,0.244561]
[1743691431462,0.244546,81784.0,81778.0,0.08057169]
[1743691431701,0.28,81784.0,81778.0,0.08057169]
[1743691431935,0.28,81784.0,81778.0,0.32513269]
[1743691432187,0.28,81784.0,81778.0,0.09279969]
[1743691432401,0.28,81784.0,81783.0,0.244549]
[1743691432630,0.28,81784.0,81780.0,0.244557]
[1743691432908,0.28,81784.0,81781.0,0.1167556]
[1743691433123,0.28,81784.0,81783.0,0.244549]
[1743691433341,0.28,81784.0,81778.0,0.08057169]
[1743691433997,0.012227,81783.0,81778.0,0.08057169]
[1743691434218,0.256781,81782.0,81778.0,0.08057169]
[1743691434447,0.27,81782.0,81778.0,0.08057169]
[1743691434666,0.27,81782.0,81780.0,4e-05]
[1743691434921,0.27,81782.0,81781.0,0.256782]
[1743691436272,0.27,81782.0,81781.0,0.3735376]
[1743691436517,0.27,81782.0,81781.0,0.3936376]
[1743691436708,0.27,81782.0,81781.0,0.40817845]
[1743691437495,0.27,81782.0,81781.0,0.3735376]
[1743691438915,0.27,81782.0,81780.0,0.16216]
[1743691439148,0.27,81782.0,81781.0,0.012267]
[1743691439381,0.27,81782.0,81781.0,4e-05]
[1743691442638,0.318,81782.0,81781.0,4e-05]
[1743691443161,0.27,81782.0,81781.0,0.012267]
[1743691443403,0.27,81782.0,81781.0,0.14356345]
[1743691445284,0.0003366,81788.0,81781.0,0.14356345]
[1743691445500,1.0566,81810.0,81808.0,0.244472]
[1743691445713,1.2966,81810.0,81808.0,0.256696]
[1743691445935,0.24,81810.0,81809.0,0.012223]
[1743691446176,0.24,81810.0,81795.0,0.174305]
[1743691446381,0.244471,81809.0,81797.0,0.256731]
[1743691446598,0.244483,81806.0,81795.0,0.406591]
[1743691446813,0.27,81806.0,81796.0,0.012225]
[1743691447176,0.27,81806.0,81798.0,0.244504]
[1743691447389,0.27,81806.0,81797.0,0.012225]
[1743691447599,0.27,81806.0,81799.0,0.2445]
[1743691448000,0.27,81806.0,81797.0,0.256732]
[1743691448231,0.27,81806.0,81797.0,0.244507]
[1743691448463,0.27,81806.0,81795.0,0.16208]
[1743691448866,0.27,81806.0,81786.0,0.012227]
[1743691448867,0.0493,81801.0,81783.0,0.012227]
[1743691449137,0.244508,81797.0,81784.0,0.244544]
[1743691449350,0.012226,81789.0,81780.0,4e-05]
[1743691449553,0.28,81789.0,81780.0,4e-05]
[1743691449892,0.28,81789.0,81780.0,0.244598]
[1743691450118,0.28,81789.0,81780.0,4e-05]
[1743691450322,0.28,81789.0,81786.0,0.012227]
[1743691450720,0.524533,81789.0,81780.0,4e-05]
[1743691450953,0.244552,81782.0,81780.0,4e-05]
[1743691451178,0.586479,81782.0,81780.0,4e-05]
[1743691451614,0.3297,81782.0,81780.0,4e-05]
[1743691451772,0.586479,81782.0,81780.0,4e-05]
[1743691454071,0.3297,81782.0,81780.0,4e-05]
[1743691454983,0.28,81782.0,81781.0,0.012267]
[1743691455228,0.28,81782.0,81781.0,0.244595]
[1743691455466,0.28,81782.0,81781.0,4e-05]
[1743691456877,0.536779,81782.0,81781.0,4e-05]
[1743691457554,0.6535346,81782.0,81781.0,4e-05]
[1743691457788,0.7509346,81782.0,81781.0,4e-05]
[1743691458247,1.39138371,81782.0,81781.0,4e-05]
[1743691458498,0.645589,81779.0,81778.0,7.9e-07]
[1743691458719,1.0223446,81779.0,81778.0,7.9e-07]
[1743691460486,0.642198,81776.0,81767.0,0.07797024]
[1743691460717,1.0389536,81776.0,81767.0,0.07797024]
[1743691461158,0.596811,81772.0,81767.0,0.07797024]
[1743691461402,1.0388666,81772.0,81767.0,0.07797024]
[1743691461665,0.69096385,81768.0,81767.0,0.07797024]
[1743691461876,0.69096385,81768.0,81747.0,0.0001684]
[1743691461877,0.646464,81755.0,81747.0,0.0001684]
[1743691462159,0.352232,81751.0,81747.0,7e-08]
[1743691462417,0.646486,81748.0,81747.0,7e-08]
[1743691462631,1.0432416,81748.0,81747.0,7e-08]
[1743691463287,0.4585876,81748.0,81747.0,7e-08]
[1743691464015,0.4605876,81748.0,81747.0,7e-08]
[1743691464228,0.34085569,81748.0,81747.0,7e-08]
[1743691464442,0.343832,81748.0,81747.0,7e-08]
[1743691464870,0.341832,81748.0,81747.0,7e-08]
[1743691465360,0.46783088,81748.0,81747.0,7e-08]
[1743691465605,0.46983088,81748.0,81747.0,7e-08]
[1743691465815,0.282,81748.0,81747.0,7e-08]
[1743691466051,0.28,81748.0,81747.0,7e-08]
[1743691466263,0.281,81748.0,81747.0,7e-08]
[1743691466474,0.28,81748.0,81747.0,7e-08]
[1743691466687,0.342232,81748.0,81747.0,7e-08]
[1743691466900,0.33,81748.0,81747.0,7e-08]
[1743691469156,0.28,81748.0,81747.0,7e-08]
[1743691470474,0.28,81748.0,81747.0,0.01223207]
[1743691470703,0.28,81748.0,81747.0,0.25688907]
[1743691471426,0.28,81748.0,81747.0,0.71364467]
[1743691471645,0.28,81748.0,81747.0,0.72818552]
[1743691472530,0.06,81748.0,81747.0,0.72818552]
[1743691472756,0.06,81748.0,81747.0,0.74057646]
[1743691473461,0.06,81748.0,81747.0,0.78837646]
[1743691474697,0.06,81748.0,81747.0,0.80055491]
[1743691476318,0.06,81748.0,81747.0,0.80059491]
[1743691476822,0.01,81773.0,81772.0,0.596811]
[1743691477058,0.0003362,81788.0,81787.0,0.256763]
[1743691477288,0.2103362,81788.0,81787.0,0.26894145]
[1743691478002,0.2103362,81788.0,81787.0,0.7402379]
[1743691478242,0.0003366,81811.0,81808.0,0.256697]
[1743691478475,0.234,81809.0,81808.0,0.26887545]
[1743691478723,0.234,81809.0,81808.0,0.60887545]
[1743691479218,0.234,81809.0,81808.0,0.72563105]
[1743691479456,0.23034271,81809.0,81808.0,0.7401719]
[1743691479678,0.0003366,81811.0,81810.0,0.596691]
[1743691479915,0.0001682,81830.0,81810.0,0.596691]
[1743691479916,0.0001682,81830.0,81810.0,0.71576445]
[1743691480186,0.2701682,81830.0,81829.0,0.34]
[1743691480445,0.2701682,81830.0,81829.0,0.01217845]
[1743691480720,0.5267972,81830.0,81829.0,0.01217845]
[1743691481496,0.6917528,81830.0,81829.0,0.01217845]
[1743691481981,0.7385528,81830.0,81829.0,0.01217845]
[1743691482945,0.9003528,81830.0,81829.0,0.01217845]
[1743691484569,0.244477,81808.0,81790.0,0.256754]
[1743691484797,0.27,81808.0,81798.0,0.244503]
[1743691484988,0.27,81808.0,81797.0,0.244505]
[1743691485424,0.244478,81807.0,81795.0,0.596736]
[1743691485643,0.25,81807.0,81796.0,0.012225]
[1743691485866,0.25,81807.0,81797.0,0.34]
[1743691486083,0.25,81807.0,81797.0,0.584507]
[1743691486348,0.25,81807.0,81797.0,0.34]
[1743691486580,0.494478,81807.0,81797.0,0.34]
[1743691487027,0.494478,81807.0,81795.0,0.256737]
[1743691487028,0.244481,81806.0,81795.0,0.256737]
[1743691487252,0.23,81806.0,81795.0,0.256737]
[1743691487478,0.23,81806.0,81798.0,0.012225]
[1743691487738,0.23,81806.0,81800.0,0.244497]
[1743691488621,0.23,81806.0,81798.0,0.256727]
[1743691488885,0.23,81806.0,81790.0,0.1167556]
[1743691489118,0.23,81806.0,81794.0,0.012225]
[1743691489357,0.23,81806.0,81791.0,0.173986]
[1743691489358,0.012224,81802.0,81791.0,0.16176]
[1743691489592,0.486719,81802.0,81800.0,4e-05]
[1743691489833,0.012224,81801.0,81800.0,4e-05]
[1743691490062,0.292224,81801.0,81800.0,4e-05]
[1743691490296,0.28,81801.0,81800.0,4e-05]
[1743691492146,0.536719,81801.0,81800.0,4e-05]
[1743691492390,0.6534746,81801.0,81800.0,4e-05]
[1743691492631,0.7031746,81801.0,81800.0,4e-05]
[1743691492847,0.586419,81801.0,81800.0,4e-05]
[1743691493088,0.3297,81801.0,81800.0,4e-05]
[1743691493862,0.28,81801.0,81800.0,4e-05]
[1743691494523,0.28,81801.0,81800.0,0.256762]
[1743691494964,0.28,81801.0,81800.0,4e-05]
[1743691495647,0.28,81801.0,81800.0,0.256762]
[1743691496131,0.28,81801.0,81800.0,0.244538]
[1743691496354,0.28,81801.0,81800.0,4e-05]
[1743691496791,0.28,81801.0,81800.0,0.256762]
[1743691497245,0.28,81801.0,81800.0,4e-05]
[1743691498311,0.524495,81801.0,81800.0,4e-05]
[1743691498546,0.28,81801.0,81800.0,4e-05]
[1743691499015,0.524495,81801.0,81800.0,4e-05]
[1743691499247,0.536719,81801.0,81800.0,4e-05]
[1743691499881,0.7018746,81801.0,81800.0,4e-05]
[1743691500376,0.536719,81801.0,81800.0,4e-05]
[1743691500809,0.6534746,81801.0,81800.0,4e-05]
[1743691501951,0.28,81801.0,81800.0,0.244538]
[1743691502141,0.28,81801.0,81800.0,4e-05]
[1743691502364,0.28,81801.0,81800.0,0.256762]
[1743691502485,0.28,81801.0,81800.0,0.3735176]
[1743691502706,0.28,81801.0,81800.0,4e-05]
[1743691504993,0.28,81801.0,81800.0,0.256762]
[1743691505453,0.28,81801.0,81800.0,4e-05]
[1743691505681,0.536719,81801.0,81800.0,4e-05]
[1743691505891,0.524495,81801.0,81800.0,4e-05]
[1743691506124,0.536719,81801.0,81800.0,4e-05]
[1743691506571,0.28,81801.0,81800.0,4e-05]
[1743691506819,0.524495,81801.0,81800.0,4e-05]
[1743691507036,0.28,81801.0,81800.0,4e-05]
[1743691507493,0.536719,81801.0,81800.0,4e-05]
[1743691507718,0.7023746,81801.0,81800.0,4e-05]
[1743691508604,0.244603,81766.0,81754.0,0.012231]
[1743691508809,0.24,81766.0,81756.0,0.012231]
[1743691509050,0.24,81766.0,81754.0,0.012231]
[1743691509322,0.24,81766.0,81757.0,0.256857]
[1743691509481,0.24,81766.0,81765.0,0.256833]
[1743691511051,0.24,81766.0,81762.0,0.34]
[1743691511540,0.244609,81763.0,81754.0,0.34]
[1743691511769,0.244609,81763.0,81752.0,0.244641]
[1743691511770,0.23,81763.0,81752.0,0.34]
[1743691512016,0.244614,81762.0,81752.0,0.584642]
[1743691512247,0.244616,81761.0,81751.0,0.248645]
[1743691512471,0.27,81761.0,81753.0,0.012231]
[1743691512939,0.27,81761.0,81751.0,0.004]
[1743691512940,0.28223,81761.0,81751.0,0.004]
[1743691513162,0.27,81761.0,81756.0,0.244629]
[1743691513402,0.27,81761.0,81757.0,0.012231]
[1743691513631,0.27,81761.0,81756.0,0.244624]
[1743691513827,0.27,81761.0,81758.0,0.244621]
[1743691514048,0.27,81761.0,81757.0,0.012231]
[1743691514274,0.27,81761.0,81755.0,0.256863]
[1743691514525,0.27,81761.0,81753.0,0.012231]
[1743691514777,0.27,81761.0,81752.0,0.244682]
[1743691514778,0.27,81761.0,81752.0,4e-05]
[1743691515028,0.27,81761.0,81753.0,0.012231]
[1743691515266,0.27,81761.0,81753.0,0.256867]
[1743691515523,0.27,81761.0,81755.0,0.24463]
[1743691515738,0.27,81761.0,81752.0,4e-05]
[1743691516231,0.27,81761.0,81755.0,0.244632]
[1743691516468,0.27,81761.0,81752.0,0.244682]
[1743691516712,0.27,81761.0,81752.0,4e-05]
[1743691516950,0.27,81761.0,81757.0,0.012231]
[1743691517205,0.27,81761.0,81760.0,0.256848]
[1743691517888,0.27,81761.0,81755.0,0.256862]
[1743691517889,0.27,81761.0,81756.0,0.584627]
[1743691518120,0.27,81761.0,81752.0,4e-05]
[1743691518341,0.27,81761.0,81752.0,0.012272]
[1743691518578,0.27,81761.0,81759.0,0.244621]
[1743691518801,0.27,81761.0,81757.0,0.244624]
[1743691519035,0.27,81761.0,81757.0,0.256855]
[1743691519257,0.27,81761.0,81757.0,0.244626]
[1743691519755,0.27,81761.0,81755.0,0.244633]
[1743691519976,0.27,81761.0,81753.0,0.244638]
[1743691520191,0.27,81761.0,81728.0,0.5425934]
[1743691520192,0.244639,81753.0,81752.0,4e-05]
[1743691520395,0.494639,81753.0,81752.0,4e-05]
[1743691520838,0.25,81753.0,81752.0,4e-05]
[1743691521516,0.50687,81753.0,81752.0,4e-05]
[1743691521754,0.50687,81753.0,81752.0,0.0002081]
[1743691522195,0.6236256,81753.0,81752.0,0.0002081]
[1743691522642,0.38251254,81753.0,81752.0,0.0002081]
[1743691522869,0.39474354,81753.0,81752.0,0.0002081]
[1743691523098,1.45134354,81753.0,81752.0,0.0002081]
[1743691523560,0.256886,81748.0,81744.0,4e-05]
[1743691523795,1.18134245,81748.0,81744.0,4e-05]
[1743691524032,0.303543,81730.0,81729.0,0.0001684]
[1743691524257,0.6802986,81730.0,81729.0,0.0001684]
[1743691524991,0.68926261,81730.0,81729.0,0.0001684]
[1743691525450,0.73816261,81730.0,81729.0,0.0001684]
[1743691525684,0.89972261,81730.0,81729.0,0.0001684]
[1743691526143,0.89972261,81730.0,81729.0,0.0002084]
[1743691527323,1.23972261,81730.0,81729.0,0.0002084]
[1743691527585,0.249741,81719.0,81718.0,0.000168]
[1743691527825,2.14525445,81719.0,81718.0,0.000168]
[1743691528302,0.290612,81708.0,81707.0,0.0003]
[1743691528532,0.8289276,81708.0,81707.0,0.0003]
[1743691528778,0.5719156,81708.0,81707.0,0.0003]
[1743691529229,0.4103556,81708.0,81707.0,0.0003]
[1743691529692,0.4225936,81708.0,81707.0,0.0003]
[1743691529937,0.2936,81708.0,81707.0,0.0003]
[1743691530162,0.26935219,81708.0,81707.0,0.0003]
[1743691530597,0.26935219,81708.0,81707.0,0.012538]
[1743691530834,0.261,81708.0,81707.0,0.012538]
[1743691531306,0.26,81708.0,81707.0,0.012538]
[1743691532159,0.26,81708.0,81707.0,0.0003]
[1743691533897,0.26,81708.0,81707.0,0.00034]
[1743691534337,0.6835676,81708.0,81707.0,0.00034]
[1743691534617,0.6835676,81708.0,81707.0,0.0005083]
[1743691535086,0.4265556,81708.0,81707.0,0.0005483]
[1743691535243,0.4879936,81708.0,81707.0,0.0005483]
[1743691535568,0.4879936,81708.0,81707.0,0.0005883]
[1743691535769,0.4757556,81708.0,81707.0,0.0005883]
[1743691535943,0.4879936,81708.0,81707.0,0.0005883]
[1743691537355,0.7327676,81708.0,81707.0,0.0005883]
[1743691537560,0.4757556,81708.0,81707.0,0.0005883]
[1743691538681,0.4605296,81708.0,81707.0,0.0005883]
[1743691538866,0.7405296,81708.0,81707.0,0.0005883]
[1743691539087,0.4957556,81708.0,81707.0,0.0005883]
[1743691539519,0.7527676,81708.0,81707.0,0.0005883]
[1743691539740,0.83877048,81708.0,81707.0,0.0005883]
[1743691540005,0.7527676,81708.0,81707.0,0.0005883]
[1743691541092,0.602019,81706.0,81705.0,0.0001684]
[1743691541303,1.01331545,81706.0,81705.0,0.0001684]
[1743691542413,1.00331545,81706.0,81705.0,0.0001684]
[1743691542862,1.05051545,81706.0,81705.0,0.0001684]
[1743691543082,0.302863,81692.0,81678.0,1.0]
[1743691543298,0.8411786,81692.0,81678.0,1.0]
[1743691543517,1.1811786,81692.0,81678.0,1.0]
[1743691544167,1.19028333,81692.0,81678.0,1.0]
[1743691544385,1.19028333,81692.0,81678.0,1.244862]
[1743691544604,1.19128333,81692.0,81678.0,1.0]
[1743691545082,0.93422033,81692.0,81683.0,0.25717]
[1743691545272,0.38786033,81692.0,81686.0,0.244839]
[1743691545526,0.38786033,81692.0,81683.0,8e-05]
[1743691546396,0.38686033,81692.0,81683.0,8e-05]
[1743691547640,0.39810133,81692.0,81683.0,8e-05]
[1743691548860,0.64292333,81692.0,81683.0,8e-05]
[1743691549155,1.21060819,81692.0,81683.0,8e-05]
[1743691549740,0.602087,81684.0,81683.0,8e-05]
[1743691549982,1.01338345,81684.0,81683.0,8e-05]
[1743691550511,0.9938426,81684.0,81683.0,8e-05]
[1743691551910,0.3967556,81684.0,81683.0,8e-05]
[1743691552139,0.6436006,81684.0,81683.0,8e-05]
[1743691552588,0.283,81684.0,81683.0,8e-05]
[1743691552834,0.281,81684.0,81683.0,8e-05]
[1743691553043,0.28,81684.0,81683.0,0.25717]
[1743691553258,0.28,81684.0,81683.0,8e-05]
[1743691554164,0.524845,81684.0,81683.0,8e-05]
[1743691554382,0.537087,81684.0,81683.0,8e-05]
[1743691554862,0.6538426,81684.0,81683.0,8e-05]
[1743691556725,1.0918426,81684.0,81683.0,8e-05]
[1743691558423,1.0918426,81684.0,81683.0,0.0002483]
[1743691558645,1.10500729,81684.0,81683.0,0.0002483]
[1743691559141,1.10600729,81684.0,81683.0,0.0002483]
[1743691559546,1.14274029,81684.0,81683.0,0.0002483]
[1743691561195,0.9836006,81684.0,81683.0,0.0002483]
[1743691561406,0.9958426,81684.0,81683.0,0.0002483]
[1743691561614,1.0325736,81684.0,81683.0,0.0002483]
[1743691562671,1.04463377,81684.0,81683.0,0.0002483]
[1743691563121,1.13073377,81684.0,81683.0,0.0002483]
[1743691563565,1.20007462,81684.0,81683.0,0.0002483]
[1743691565159,0.82754677,81684.0,81683.0,0.0002483]
[1743691565378,0.8154866,81684.0,81683.0,0.0002483]
[1743691565646,0.358731,81684.0,81683.0,0.2573383]
[1743691565868,0.322,81684.0,81683.0,0.0002483]
[1743691566110,0.322,81684.0,81683.0,0.2450963]
[1743691566316,0.322,81684.0,81683.0,0.2573383]
[1743691566544,0.321,81684.0,81683.0,0.2450963]
[1743691566758,0.321,81684.0,81683.0,0.2573383]
[1743691566976,0.321,81684.0,81683.0,0.0002483]
[1743691567196,0.32,81684.0,81683.0,0.0002483]
[1743691567692,0.1259431,81684.0,81683.0,0.2450963]
[1743691567928,0.1259431,81684.0,81683.0,0.0002483]
[1743691568357,0.1259431,81684.0,81683.0,0.2573383]
[1743691569485,0.1259431,81684.0,81683.0,0.0002483]
[1743691570344,0.1259431,81684.0,81683.0,0.2573383]
[1743691570619,0.1259431,81684.0,81683.0,0.2573783]
[1743691571689,0.1259431,81684.0,81683.0,0.0125303]
[1743691571903,0.1259431,81684.0,81683.0,0.2573783]
[1743691573041,0.1259431,81684.0,81683.0,0.0002883]
[1743691573974,0.4997857,81684.0,81683.0,0.0002883]
[1743691574387,0.8397857,81684.0,81683.0,0.0002883]
[1743691575328,0.5826987,81684.0,81683.0,0.0002883]
[1743691575826,0.4659431,81684.0,81683.0,0.0002883]
[1743691576564,0.1259431,81684.0,81683.0,0.2573783]
[1743691577251,0.1259431,81684.0,81683.0,0.0002883]
[1743691577512,0.1259431,81684.0,81683.0,0.0003283]
[1743691577728,0.1259431,81684.0,81683.0,0.2451763]
[1743691578203,0.1259431,81684.0,81683.0,0.2574183]
[1743691580048,0.1259431,81684.0,81683.0,0.0003283]
[1743691580500,0.1259431,81684.0,81683.0,0.2451763]
[1743691580726,0.1259431,81684.0,81683.0,0.2574183]
[1743691583517,0.1259431,81684.0,81683.0,0.2451763]
[1743691583748,0.1259431,81684.0,81683.0,0.0003283]
[1743691584204,0.1262797,81684.0,81683.0,0.0003283]
[1743691584911,0.1262797,81684.0,81683.0,0.2574183]
[1743691590068,0.1262797,81684.0,81683.0,0.0003283]
[1743691590274,0.3711247,81684.0,81683.0,0.0003283]
[1743691590578,0.3833667,81684.0,81683.0,0.0003283]
[1743691590996,0.1262797,81684.0,81683.0,0.0125703]
[1743691591222,0.1262797,81684.0,81683.0,0.2574183]
[1743691592536,0.1262797,81684.0,81683.0,0.4186983]
[1743691592990,0.244789,81704.0,81692.0,0.244819]
[1743691592991,0.244794,81702.0,81692.0,0.244819]
[1743691593189,0.01224,81695.0,81683.0,0.2451763]
[1743691593389,0.244816,81694.0,81685.0,0.244842]
[1743691593598,0.27,81694.0,81684.0,0.244843]
[1743691593834,0.27,81694.0,81693.0,0.01224]
[1743691594045,0.27,81694.0,81693.0,0.257059]
[1743691594245,0.27,81694.0,81692.0,0.257062]
[1743691594434,0.27,81694.0,81693.0,0.257059]
[1743691594918,0.27,81694.0,81693.0,0.3738146]
[1743691595147,0.27,81694.0,81693.0,0.43695545]
[1743691595602,0.27,81694.0,81693.0,0.3738146]
[1743691596308,0.27,81694.0,81693.0,0.38835545]
[1743691596531,0.27,81694.0,81693.0,0.3738146]
[1743691596975,0.27,81694.0,81693.0,0.257059]
[1743691598294,0.27,81694.0,81692.0,0.406099]
[1743691598295,0.27,81694.0,81692.0,0.16128]
[1743691598524,0.27,81694.0,81693.0,0.257059]
[1743691598752,0.27,81694.0,81688.0,0.244833]
[1743691598963,0.27,81694.0,81690.0,0.244827]
[1743691599181,0.27,81694.0,81691.0,0.244824]
[1743691599416,0.27,81694.0,81689.0,0.25707]
[1743691599638,0.27,81694.0,81688.0,0.257073]
[1743691599823,0.27,81694.0,81688.0,0.244832]
[1743691600046,0.27,81694.0,81686.0,0.257078]
[1743691600257,0.27,81694.0,81686.0,0.244837]
[1743691600472,0.27,81694.0,81687.0,0.244834]
[1743691600703,0.27,81694.0,81684.0,0.173482]
[1743691600704,0.01224,81693.0,81684.0,0.16124]
[1743691600924,0.012241,81692.0,81683.0,0.0003283]
[1743691601147,0.26,81692.0,81685.0,0.24484]
[1743691601909,0.012241,81691.0,81683.0,0.0003283]
[1743691602110,0.257087,81684.0,81683.0,0.0003283]
[1743691602318,0.497087,81684.0,81683.0,0.0003283]
[1743691603160,0.6138426,81684.0,81683.0,0.0003283]
[1743691603392,0.3567556,81684.0,81683.0,0.0003283]
[1743691603542,0.6138426,81684.0,81683.0,0.0003283]
[1743691603958,0.24,81684.0,81683.0,0.0003283]
[1743691604826,0.24,81684.0,81683.0,0.2574183]
[1743691606138,0.24,81684.0,81683.0,0.3741739]
[1743691608109,0.24,81684.0,81683.0,0.2574183]
[1743691608352,0.24,81684.0,81683.0,0.0125703]
[1743691608574,0.24,81684.0,81683.0,0.2574183]
[1743691609288,0.24,81684.0,81683.0,0.0003283]
[1743691609533,0.24,81684.0,81683.0,0.2574183]
[1743691613039,0.0003366,81704.0,81683.0,0.2574183]
[1743691613040,0.0003366,81704.0,81703.0,0.257028]
[1743691613273,0.2803366,81704.0,81703.0,0.257028]
[1743691614421,0.2823366,81704.0,81703.0,0.257028]
[1743691614899,0.2803366,81704.0,81703.0,0.257028]
[1743691615125,0.2803366,81704.0,81703.0,0.3737836]
[1743691615400,0.2803366,81704.0,81703.0,0.5349036]
[1743691615834,2e-07,81705.0,81704.0,0.257025]
[1743691616069,0.0100002,81705.0,81704.0,0.72832145]
[1743691616772,0.0100002,81705.0,81704.0,0.7137806]
[1743691618430,0.0100002,81705.0,81704.0,0.72832145]
[1743691619334,2e-07,81705.0,81704.0,0.78222145]
[1743691619562,0.0003366,81718.0,81717.0,0.256984]
[1743691619799,0.0003366,81718.0,81717.0,0.3737396]
[1743691619800,0.0203366,81718.0,81717.0,0.3737396]
[1743691620700,0.0203366,81718.0,81716.0,0.244749]
[1743691620901,0.0203366,81718.0,81717.0,0.012237]
[1743691621148,0.0203366,81718.0,81711.0,0.012238]
[1743691621387,0.0203366,81718.0,81713.0,0.012237]
[1743691621602,0.0203366,81718.0,81698.0,0.37616228]
[1743691621603,0.0325736,81718.0,81706.0,0.173319]
[1743691621933,0.244756,81714.0,81706.0,0.244777]
[1743691622178,0.27,81714.0,81707.0,0.244776]
[1743691622413,0.27,81714.0,81702.0,0.012239]